bitfinex/quotes_BTCUSD_20250902
["timestamp","ask_amount","ask_price","bid_price","bid_amount"]
[1756819861396,1.74421375,109480.0,109470.0,0.00083019]
[1756819861605,1.74418493,109480.0,109470.0,0.00083019]
[1756819862043,1.74418405,109480.0,109470.0,0.00083019]
[1756819862261,1.74418405,109480.0,109470.0,1e-08]
[1756819862701,1.71969851,109480.0,109470.0,1e-08]
[1756819862917,1.03736805,109480.0,109470.0,1e-08]
[1756819863188,1.76141664,109480.0,109470.0,1e-08]
[1756819863630,1.98235546,109480.0,109470.0,1e-08]
[1756819863857,7.11446874,109480.0,109470.0,1e-08]
[1756819864078,1.88787276,109450.0,109440.0,1e-08]
[1756819864295,2.33790949,109450.0,109440.0,1e-08]
[1756819864545,2.54555656,109450.0,109440.0,1e-08]
[1756819864758,1.20533569,109430.0,109420.0,0.00048]
[1756819864964,1.49313643,109430.0,109420.0,0.00048]
[1756819865188,1.2053691,109410.0,109400.0,0.07398631]
[1756819865398,1.3752891,109410.0,109400.0,0.07398631]
[1756819865827,1.2053691,109410.0,109400.0,0.00044]
[1756819866058,0.52326835,109410.0,109400.0,0.18828535]
[1756819866273,0.00046971,109410.0,109400.0,0.18828535]
[1756819866491,0.86583881,109410.0,109400.0,0.00547]
[1756819866711,1.37793881,109410.0,109400.0,0.00044]
[1756819866998,1.4699348,109410.0,109400.0,0.00044]
[1756819867212,1.49742555,109410.0,109400.0,0.00044]
[1756819867429,1.56609857,109410.0,109400.0,0.00044]
[1756819868088,1.39274857,109410.0,109400.0,0.00044]
[1756819868309,1.49807555,109410.0,109400.0,0.00044]
[1756819868520,1.49807555,109410.0,109400.0,0.00544]
[1756819868952,0.81550509,109410.0,109400.0,0.00544]
[1756819869170,1.49807555,109410.0,109400.0,0.00544]
[1756819869396,1.58999154,109410.0,109400.0,0.00544]
[1756819869848,1.58999154,109410.0,109400.0,0.01064]
[1756819869849,0.2107591,109410.0,109400.0,0.01064]
[1756819870065,0.00046971,109410.0,109400.0,0.19345535]
[1756819870285,0.00046971,109410.0,109400.0,0.01064]
[1756819870507,0.00046971,109410.0,109400.0,0.43122016]
[1756819870756,0.18326835,109410.0,109400.0,0.43122016]
[1756819870976,0.18326835,109410.0,109400.0,0.26373535]
[1756819871193,0.18326835,109410.0,109400.0,0.08092]
[1756819871635,0.86583881,109410.0,109400.0,0.01064]
[1756819871860,0.18326835,109410.0,109400.0,0.19345535]
[1756819872102,0.00046971,109410.0,109400.0,0.10255599]
[1756819872317,1.4708948,109410.0,109400.0,0.00544]
[1756819872550,1.56594079,109410.0,109400.0,0.00544]
[1756819873006,1.39165079,109410.0,109400.0,0.00544]
[1756819873211,1.56285079,109410.0,109400.0,0.00544]
[1756819873419,1.56301079,109410.0,109400.0,0.00544]
[1756819873639,1.39165079,109410.0,109400.0,0.00544]
[1756819873855,1.2997348,109410.0,109400.0,0.00544]
[1756819874088,1.4709748,109410.0,109400.0,0.00544]
[1756819874300,1.4741048,109410.0,109400.0,0.00544]
[1756819874753,1.4795448,109410.0,109400.0,0.00544]
[1756819874961,1.57146079,109410.0,109400.0,0.00544]
[1756819875179,0.18281535,109400.0,109390.0,0.0004]
[1756819875406,0.9573018,109400.0,109390.0,0.0004]
[1756819875635,0.9624118,109400.0,109390.0,0.0004]
[1756819875868,1.05432779,109400.0,109390.0,0.0004]
[1756819876277,1.05432779,109400.0,109360.0,0.0004]
[1756819876278,0.34,109370.0,109360.0,0.0004]
[1756819876504,1.46859195,109370.0,109360.0,0.0004]
[1756819876748,1.47370195,109370.0,109360.0,0.0004]
[1756819876965,1.48801628,109370.0,109360.0,0.0004]
[1756819877194,1.5385276,109370.0,109360.0,0.0004]
[1756819877418,1.3731576,109370.0,109360.0,0.0004]
[1756819877637,1.3731576,109370.0,109350.0,0.00044]
[1756819877638,0.52288222,109360.0,109350.0,0.00044]
[1756819877852,1.2054694,109350.0,109340.0,0.0004]
[1756819878076,1.2741457,109350.0,109340.0,0.0004]
[1756819878289,1.5156257,109350.0,109340.0,0.0004]
[1756819878523,1.5187557,109350.0,109340.0,0.0004]
[1756819878954,0.85665493,109350.0,109340.0,0.0004]
[1756819879167,1.54120539,109350.0,109340.0,0.0004]
[1756819879403,1.55333539,109350.0,109340.0,0.0004]
[1756819879613,0.18291567,109340.0,109330.0,0.0004]
[1756819879831,0.95740212,109340.0,109330.0,0.0004]
[1756819880043,1.05442811,109340.0,109330.0,0.0004]
[1756819880483,0.95740212,109340.0,109330.0,0.0004]
[1756819880720,1.12956212,109340.0,109330.0,0.0004]
[1756819881185,1.13154212,109340.0,109330.0,0.0004]
[1756819881401,0.27483166,109340.0,109330.0,0.0056]
[1756819881626,1.13242212,109340.0,109330.0,0.0004]
[1756819881852,0.44787166,109340.0,109330.0,0.0056]
[1756819882074,1.13044212,109340.0,109330.0,0.0066]
[1756819882293,1.47242212,109340.0,109330.0,0.0014]
[1756819882577,1.48455212,109340.0,109330.0,0.0014]
[1756819882794,1.48455212,109340.0,109330.0,0.0034]
[1756819882795,1.48138212,109340.0,109330.0,0.0034]
[1756819883011,0.88878765,109340.0,109330.0,0.0034]
[1756819883228,1.57147811,109340.0,109330.0,0.0034]
[1756819883449,1.47056212,109340.0,109330.0,0.0086]
[1756819883666,1.29740212,109340.0,109330.0,0.0034]
[1756819883930,0.52291567,109340.0,109330.0,0.0086]
[1756819884178,1.37868613,109340.0,109330.0,0.0034]
[1756819884399,0.69623567,109340.0,109330.0,0.0086]
[1756819884632,1.58896693,109340.0,109330.0,0.0034]
[1756819884848,0.18294914,109320.0,109310.0,0.0004]
[1756819885063,0.44850513,109320.0,109310.0,0.00357]
[1756819885285,0.18294914,109320.0,109310.0,0.0056]
[1756819885501,0.8655196,109320.0,109310.0,0.0056]
[1756819885952,0.18294914,109320.0,109310.0,0.0056]
[1756819886420,0.18294914,109320.0,109310.0,0.0076]
[1756819886421,0.18341827,109320.0,109310.0,0.0076]
[1756819886638,0.18441827,109320.0,109310.0,0.0136]
[1756819886863,0.52441827,109320.0,109310.0,0.0136]
[1756819887102,1.20698873,109320.0,109310.0,0.0136]
[1756819887320,0.52441827,109320.0,109310.0,0.0136]
[1756819887808,1.20698873,109320.0,109310.0,0.0136]
[1756819888039,0.52441827,109320.0,109310.0,0.0084]
[1756819888254,1.20698873,109320.0,109310.0,0.0084]
[1756819888487,1.20698873,109320.0,109310.0,0.01043]
[1756819888707,1.20698873,109320.0,109310.0,0.0136]
[1756819888943,0.52441827,109320.0,109310.0,0.0136]
[1756819889144,1.20698873,109320.0,109310.0,0.0136]
[1756819889373,1.37176636,109320.0,109310.0,0.0084]
[1756819889610,0.18296587,109310.0,109300.0,0.00044]
[1756819889824,1.13181232,109310.0,109300.0,0.00044]
[1756819890041,1.15075431,109310.0,109300.0,0.00044]
[1756819890289,0.46818385,109310.0,109300.0,0.00044]
[1756819890511,1.15075431,109310.0,109300.0,0.00044]
[1756819890753,0.18298261,109300.0,109290.0,0.0004]
[1756819890977,0.18298261,109300.0,109280.0,8e-05]
[1756819890978,0.18299935,109290.0,109280.0,8e-05]
[1756819891200,1.15102461,109290.0,109280.0,8e-05]
[1756819891426,1.17368501,109290.0,109280.0,8e-05]
[1756819891648,1.17368465,109290.0,109280.0,8e-05]
[1756819891880,2.2881711,109290.0,109280.0,8e-05]
[1756819892121,0.86560331,109270.0,109260.0,0.0004]
[1756819892336,0.86560331,109270.0,109260.0,0.00357]
[1756819892554,0.86560331,109270.0,109260.0,0.0056]
[1756819892800,0.18303285,109270.0,109260.0,0.0056]
[1756819893012,1.04024331,109270.0,109260.0,0.0056]
[1756819893248,0.35767285,109270.0,109260.0,0.0056]
[1756819893465,0.1835014,109270.0,109260.0,0.00556]
[1756819893688,1.20607186,109270.0,109260.0,0.00556]
[1756819894381,1.20707186,109270.0,109260.0,0.00656]
[1756819895065,1.31066073,109270.0,109260.0,0.00136]
[1756819895280,1.40257672,109270.0,109260.0,0.00436]
[1756819895542,1.41953108,109270.0,109260.0,0.00436]
[1756819895753,0.73498062,109270.0,109260.0,0.00436]
[1756819895993,1.50221509,109270.0,109260.0,0.00436]
[1756819896195,1.57257509,109270.0,109260.0,0.00436]
[1756819896405,1.50023509,109270.0,109260.0,0.00436]
[1756819896628,1.2337191,109270.0,109260.0,0.00639]
[1756819896840,0.35842291,109270.0,109260.0,0.00956]
[1756819897052,1.22402622,109270.0,109260.0,0.00956]
[1756819897260,1.20707186,109270.0,109260.0,0.00956]
[1756819897692,0.00146855,109270.0,109260.0,0.21187603]
[1756819897908,0.00146855,109270.0,109260.0,0.30379202]
[1756819898138,0.00146855,109270.0,109260.0,0.32473084]
[1756819898349,0.00146855,109270.0,109260.0,1.0619313]
[1756819898578,0.00146855,109270.0,109260.0,1.4019313]
[1756819898999,0.00146855,109270.0,109260.0,1.5019313]
[1756819899211,0.00146855,109270.0,109260.0,1.9019313]
[1756819899424,0.00146855,109270.0,109260.0,1.34384084]
[1756819899640,0.00146855,109270.0,109260.0,2.06862819]
[1756819900106,0.005,109300.0,109290.0,0.20393817]
[1756819900312,0.005,109300.0,109290.0,1.25526486]
[1756819900530,0.07354631,109310.0,109300.0,0.18298261]
[1756819900739,0.07354631,109310.0,109300.0,0.2799686]
[1756819900953,0.59647875,109330.0,109310.0,0.20389319]
[1756819901168,0.41354631,109330.0,109320.0,0.18801914]
[1756819901382,0.25647871,109330.0,109320.0,0.02433643]
[1756819901594,1.27904917,109330.0,109320.0,0.02433643]
[1756819901853,0.19213293,109340.0,109320.0,0.20637201]
[1756819902071,0.19996688,109340.0,109330.0,0.00299]
[1756819902290,0.2900869,109370.0,109340.0,0.18290707]
[1756819902519,0.27340598,109370.0,109350.0,0.00299]
[1756819902743,0.27340537,109370.0,109360.0,0.00208]
[1756819902954,0.18288222,109360.0,109350.0,0.09490599]
[1756819903216,0.18288222,109360.0,109340.0,0.39885309]
[1756819903217,0.18289894,109350.0,109340.0,0.03176024]
[1756819903425,0.8654694,109350.0,109340.0,0.11459892]
[1756819903644,0.8654694,109350.0,109340.0,0.11667892]
[1756819903876,0.18289894,109350.0,109340.0,0.02268293]
[1756819904096,0.36702633,109360.0,109340.0,0.21074993]
[1756819904312,0.20902582,109360.0,109350.0,0.00208]
[1756819904749,0.18289894,109350.0,109340.0,0.02575937]
[1756819904966,0.19989843,109350.0,109340.0,0.02276937]
[1756819905182,1.22557889,109350.0,109340.0,0.00308644]
[1756819905633,1.24836299,109350.0,109340.0,0.00308644]
[1756819905853,1.24518299,109350.0,109340.0,0.00308644]
[1756819906274,1.22346889,109350.0,109340.0,0.00715644]
[1756819906534,0.53989843,109350.0,109340.0,0.00715644]
[1756819906731,0.53989843,109350.0,109340.0,0.00416644]
[1756819906945,0.53989843,109350.0,109340.0,0.19007211]
[1756819907149,0.01699949,109350.0,109340.0,0.32138219]
[1756819907361,0.8654694,109350.0,109340.0,0.13547652]
[1756819907606,0.64197178,109350.0,109340.0,0.00208644]
[1756819907827,0.81765178,109350.0,109340.0,0.00708644]
[1756819908528,0.20089843,109350.0,109340.0,0.00708644]
[1756819908742,0.64086178,109350.0,109340.0,0.00708644]
[1756819908955,0.64086178,109350.0,109340.0,0.01215644]
[1756819909164,0.01799949,109350.0,109340.0,0.21458099]
[1756819909380,0.20091432,109350.0,109340.0,0.03166532]
[1756819909651,0.20091432,109350.0,109340.0,0.00708644]
[1756819909652,0.64298767,109350.0,109340.0,0.00708644]
[1756819910490,0.81762767,109350.0,109340.0,0.00708644]
[1756819910698,0.64087767,109350.0,109340.0,0.00708644]
[1756819910908,0.20091432,109350.0,109340.0,0.01215644]
[1756819911124,0.20091432,109350.0,109340.0,0.03166526]
[1756819911351,0.64087767,109350.0,109340.0,0.00708644]
[1756819911544,0.64298767,109350.0,109340.0,0.00708644]
[1756819911748,0.20091432,109350.0,109340.0,0.00708644]
[1756819912174,0.98298767,109350.0,109340.0,0.00708644]
[1756819912391,0.98616767,109350.0,109340.0,0.00708644]
[1756819913248,0.98298767,109350.0,109340.0,0.00708644]
[1756819913502,0.01801538,109350.0,109340.0,0.19507211]
[1756819913720,0.01801538,109350.0,109340.0,0.5200473]
[1756819913946,0.001,109350.0,109340.0,0.5200473]
[1756819914167,0.18389894,109350.0,109340.0,0.5200473]
[1756819914818,0.001,109350.0,109340.0,0.5200473]
[1756819915284,0.18389894,109350.0,109340.0,0.33713163]
[1756819915497,0.18389894,109350.0,109340.0,0.5200473]
[1756819916402,0.62386229,109350.0,109340.0,0.33713163]
[1756819916607,0.62386229,109350.0,109340.0,0.18348644]
[1756819916827,0.18389894,109350.0,109340.0,0.18348644]
[1756819917033,0.62386229,109350.0,109340.0,0.18348644]
[1756819917296,0.18389894,109350.0,109340.0,0.18348644]
[1756819917508,0.001,109350.0,109340.0,0.10407243]
[1756819917721,0.001,109350.0,109340.0,0.30792692]
[1756819917944,0.001,109350.0,109340.0,0.74789027]
[1756819918151,0.001,109350.0,109340.0,0.80188027]
[1756819918380,0.001,109360.0,109350.0,0.54383776]
[1756819918627,0.001,109360.0,109350.0,1.3568571]
[1756819918835,0.001,109360.0,109350.0,1.3089771]
[1756819919484,0.001,109360.0,109350.0,0.81502375]
[1756819919918,0.001,109360.0,109350.0,0.82002375]
[1756819920142,0.62281275,109380.0,109370.0,0.02093882]
[1756819920382,0.18286977,109370.0,109360.0,0.19501882]
[1756819920609,0.62283312,109370.0,109360.0,0.46981703]
[1756819920830,0.18288222,109360.0,109350.0,0.00799]
[1756819921055,0.18288222,109360.0,109350.0,0.29488481]
[1756819921322,0.62283312,109370.0,109350.0,0.09991599]
[1756819921545,0.62495557,109360.0,109350.0,0.09191599]
[1756819921771,0.18289894,109350.0,109340.0,0.17408644]
[1756819921992,0.18289894,109350.0,109340.0,0.26600243]
[1756819922210,0.62286229,109350.0,109340.0,0.09200243]
[1756819922441,0.96497229,109350.0,109340.0,8.644e-05]
[1756819922666,0.9851415,109350.0,109340.0,8.644e-05]
[1756819922913,0.53988815,109350.0,109340.0,8.644e-05]
[1756819923126,0.9819615,109350.0,109340.0,8.644e-05]
[1756819923409,0.54199815,109350.0,109340.0,8.644e-05]
[1756819923639,0.18288224,109360.0,109340.0,0.30092692]
[1756819923898,0.18288224,109360.0,109350.0,0.26599599]
[1756819924119,0.18289894,109350.0,109340.0,0.11294125]
[1756819924347,0.18289894,109350.0,109340.0,0.28702125]
[1756819924559,0.18289894,109350.0,109340.0,0.4489981]
[1756819924776,0.18288224,109360.0,109340.0,0.47500692]
[1756819925240,0.18389894,109350.0,109340.0,0.47500692]
[1756819925475,0.001,109350.0,109340.0,0.91497027]
[1756819925692,0.001,109350.0,109340.0,1.25497027]
[1756819925923,0.18283591,109390.0,109380.0,0.18284722]
[1756819926141,0.25638222,109390.0,109380.0,0.1742]
[1756819926373,0.07354631,109390.0,109380.0,0.35604878]
[1756819926593,0.18283206,109390.0,109380.0,0.28605481]
[1756819926840,0.62490541,109390.0,109370.0,0.07032]
[1756819927067,0.18494206,109390.0,109380.0,0.17424]
[1756819927281,0.18494206,109390.0,109360.0,0.19517882]
[1756819927282,0.1828655,109370.0,109360.0,0.19517882]
[1756819927497,0.19244279,109390.0,109370.0,0.18286549]
[1756819927731,0.20037139,109390.0,109380.0,0.17424]
[1756819927946,0.22002701,109390.0,109380.0,0.17424]
[1756819928156,0.20037139,109390.0,109380.0,0.17632]
[1756819928381,0.03721967,109390.0,109380.0,0.35708878]
[1756819928601,0.01754892,109390.0,109380.0,0.47501359]
[1756819928837,0.00146913,109390.0,109380.0,0.98529694]
[1756819929106,0.00146913,109390.0,109380.0,1.32529694]
[1756819929328,0.00146913,109390.0,109380.0,1.37726694]
[1756819929548,0.00146913,109390.0,109380.0,1.42726694]
[1756819929769,0.00146913,109390.0,109380.0,1.47726694]
[1756819930204,0.00046913,109390.0,109380.0,1.47726694]
[1756819930685,0.00046913,109390.0,109380.0,1.47926694]
[1756819931330,0.00046913,109390.0,109380.0,1.87926694]
[1756819931553,1e-08,109390.0,109380.0,2.32723029]
[1756819931995,0.07354631,109440.0,109430.0,0.20370405]
[1756819932215,0.07354631,109440.0,109430.0,0.47046648]
[1756819932442,0.07354631,109440.0,109430.0,0.91536983]
[1756819932656,0.07354631,109440.0,109430.0,0.47540648]
[1756819932906,0.07354631,109440.0,109430.0,0.28970125]
[1756819933119,0.70139819,109440.0,109430.0,0.09200243]
[1756819933374,0.70139819,109440.0,109430.0,8.644e-05]
[1756819933583,0.18475853,109440.0,109430.0,8.644e-05]
[1756819934030,0.62885188,109440.0,109430.0,8.644e-05]
[1756819934498,0.62885188,109440.0,109430.0,0.00108644]
[1756819934734,0.18888853,109440.0,109430.0,0.00108644]
[1756819935162,0.62885188,109440.0,109430.0,0.00108644]
[1756819935625,1.4899738,109440.0,109430.0,0.00108644]
[1756819935841,1.50954908,109440.0,109430.0,0.00108644]
[1756819936286,1.2081652,109440.0,109430.0,0.00108644]
[1756819936538,0.98228716,109440.0,109430.0,0.00108644]
[1756819936862,0.52274853,109440.0,109430.0,0.00108644]
[1756819937064,0.96271188,109440.0,109430.0,0.00108644]
[1756819937639,0.52274853,109440.0,109430.0,0.00108644]
[1756819937803,0.96271188,109440.0,109430.0,0.00108644]
[1756819938208,0.52274853,109440.0,109430.0,0.00108644]
[1756819938487,0.96271188,109440.0,109430.0,0.00108644]
[1756819939180,0.52274853,109440.0,109430.0,0.45510766]
[1756819939425,0.96271188,109440.0,109430.0,0.27034243]
[1756819939657,0.96271188,109440.0,109430.0,0.00108644]
[1756819939857,0.52274853,109440.0,109430.0,0.00108644]
[1756819940063,0.96271188,109440.0,109430.0,0.00108644]
[1756819940494,0.18274853,109440.0,109430.0,0.09794243]
[1756819940757,0.96269717,109450.0,109430.0,0.30164648]
[1756819941003,0.62271188,109440.0,109430.0,0.00108644]
[1756819941218,1.40267523,109440.0,109430.0,0.00108644]
[1756819941642,0.96271188,109440.0,109430.0,0.00108644]
[1756819941855,0.52274853,109440.0,109430.0,0.18018644]
[1756819942066,0.52273382,109450.0,109430.0,0.49325817]
[1756819942289,0.18274853,109440.0,109430.0,0.33143177]
[1756819942501,0.62271188,109440.0,109430.0,0.03947696]
[1756819942705,0.62271188,109440.0,109430.0,0.00108644]
[1756819943568,0.96271188,109440.0,109430.0,0.00108644]
[1756819943789,1.40267523,109440.0,109430.0,0.00108644]
[1756819944015,0.52274853,109440.0,109430.0,0.00108644]
[1756819944239,0.96271188,109440.0,109430.0,0.00108644]
[1756819944875,0.18274853,109440.0,109430.0,0.17990644]
[1756819945089,0.18273217,109450.0,109430.0,0.49085649]
[1756819945300,0.18273184,109450.0,109440.0,0.27760452]
[1756819945518,0.18274853,109440.0,109430.0,0.10763527]
[1756819945724,0.62271188,109440.0,109430.0,0.39629008]
[1756819945936,0.62271188,109440.0,109430.0,0.39923008]
[1756819946180,0.62271188,109440.0,109430.0,0.39723008]
[1756819946387,0.18274853,109440.0,109430.0,0.57999531]
[1756819946593,0.18274853,109440.0,109430.0,0.39429008]
[1756819946809,0.18274853,109440.0,109430.0,0.57999531]
[1756819947061,0.18274853,109440.0,109430.0,0.37629126]
[1756819947273,0.62271188,109440.0,109430.0,0.00108644]
[1756819947487,1.40267523,109440.0,109430.0,0.00108644]
[1756819947907,0.96271188,109440.0,109430.0,0.00108644]
[1756819948553,1.40267523,109440.0,109430.0,0.00108644]
[1756819948769,1.51418677,109440.0,109430.0,0.00108644]
[1756819948981,0.18281535,109400.0,109390.0,0.24376]
[1756819949188,0.18284278,109390.0,109380.0,0.22176878]
[1756819949399,0.6227787,109400.0,109390.0,0.18283206]
[1756819949400,0.18281535,109400.0,109390.0,0.18283206]
[1756819949628,0.19193857,109410.0,109390.0,0.27968805]
[1756819949844,0.18281535,109400.0,109390.0,0.09391599]
[1756819950070,0.18283626,109390.0,109380.0,0.18284878]
[1756819950278,0.6227787,109400.0,109380.0,0.45024477]
[1756819950484,0.6227787,109400.0,109390.0,0.11579481]
[1756819950485,0.18281535,109400.0,109390.0,0.11579481]
[1756819950731,0.6227787,109400.0,109390.0,0.09485599]
[1756819950938,0.63190192,109410.0,109390.0,0.27968805]
[1756819951147,0.19193857,109410.0,109400.0,0.17662]
[1756819951366,0.63190192,109410.0,109400.0,0.17368]
[1756819951576,0.36563005,109420.0,109400.0,0.17368]
[1756819951577,0.18281096,109420.0,109400.0,0.45335134]
[1756819951788,0.65634934,109440.0,109420.0,0.18277747]
[1756819951998,0.18276523,109430.0,109420.0,0.26857599]
[1756819952223,0.18276523,109430.0,109420.0,0.45135793]
[1756819952649,0.18276523,109430.0,109420.0,0.26857599]
[1756819952865,0.63186684,109430.0,109400.0,0.07322]
[1756819953070,0.62276199,109410.0,109400.0,0.52172075]
[1756819953288,0.18378364,109420.0,109400.0,0.52372075]
[1756819953522,0.62374699,109420.0,109410.0,0.18573864]
[1756819953731,0.001,109420.0,109410.0,0.18773864]
[1756819953963,0.002,109430.0,109420.0,0.18278194]
[1756819954180,0.002,109430.0,109420.0,0.45319793]
[1756819954393,0.18476523,109430.0,109420.0,0.45319793]
[1756819954618,0.002,109430.0,109420.0,0.47413675]
[1756819954877,0.002,109430.0,109420.0,0.9141001]
[1756819955089,0.0002,109460.0,109450.0,0.20367066]
[1756819955300,0.0002,109460.0,109450.0,0.53938665]
[1756819955509,0.0002,109460.0,109450.0,0.54432665]
[1756819955731,0.0002,109460.0,109450.0,1.42526]
[1756819955950,0.0002,109460.0,109450.0,1.03529665]
[1756819956181,0.0002,109460.0,109450.0,1.47526]
[1756819956392,0.0002,109460.0,109450.0,1.3018695]
[1756819956614,0.0002,109460.0,109450.0,1.02590098]
[1756819956824,0.0002,109460.0,109450.0,1.41586433]
[1756819957042,0.0002,109460.0,109450.0,1.46586433]
[1756819957262,0.0002,109460.0,109450.0,1.07590098]
[1756819957476,0.0002,109460.0,109450.0,1.07890098]
[1756819957686,0.0012,109460.0,109450.0,1.42585433]
[1756819957894,0.0012,109460.0,109450.0,1.47585433]
[1756819958100,1e-08,109460.0,109450.0,1.52482433]
[1756819958320,0.07374631,109500.0,109490.0,0.18266508]
[1756819958580,0.07374631,109500.0,109490.0,0.95779289]
[1756819958789,0.07374631,109500.0,109490.0,0.54370836]
[1756819959019,0.0002,109500.0,109490.0,0.54370836]
[1756819959638,0.00066976,109500.0,109490.0,0.54370836]
[1756819959860,0.00066976,109500.0,109490.0,0.98367171]
[1756819960161,0.00066976,109500.0,109490.0,0.36579989]
[1756819960395,0.18331816,109500.0,109490.0,0.54604989]
[1756819960626,0.18331816,109500.0,109490.0,0.54204989]
[1756819960844,0.62328151,109500.0,109490.0,0.33539599]
[1756819961065,0.00066976,109500.0,109490.0,0.54999989]
[1756819961497,0.00066976,109500.0,109490.0,1.32996324]
[1756819961718,0.0142941,109540.0,109530.0,0.20353719]
[1756819961932,0.07374631,109550.0,109540.0,0.20352052]
[1756819962149,0.07374631,109550.0,109540.0,0.29840651]
[1756819962575,0.07374631,109550.0,109540.0,0.74039986]
[1756819962576,0.0002,109550.0,109540.0,0.74039986]
[1756819963027,0.0002,109550.0,109540.0,1.08039986]
[1756819963252,0.0002,109550.0,109540.0,1.18039986]
[1756819963487,1e-08,109550.0,109540.0,1.71813126]
[1756819963717,8e-05,109580.0,109570.0,0.59347053]
[1756819963967,8e-05,109580.0,109570.0,1.14870652]
[1756819964182,8e-05,109580.0,109570.0,1.64366987]
[1756819964403,1e-08,109590.0,109580.0,0.59345387]
[1756819964632,1e-08,109590.0,109580.0,1.63560321]
[1756819964854,0.02743784,109630.0,109620.0,0.98335062]
[1756819965086,0.02743784,109630.0,109620.0,1.14870326]
[1756819965087,1e-08,109630.0,109620.0,1.14870326]
[1756819965359,0.07354631,109650.0,109640.0,0.18241517]
[1756819965573,0.0002,109660.0,109650.0,0.54333736]
[1756819965792,0.0002,109660.0,109650.0,0.88334335]
[1756819966014,0.0002,109660.0,109650.0,1.3233067]
[1756819966244,0.00067063,109660.0,109650.0,0.88334335]
[1756819966489,0.00067063,109660.0,109650.0,0.70549335]
[1756819966691,0.00067063,109660.0,109650.0,0.54129335]
[1756819966915,0.00067063,109660.0,109650.0,0.9842667]
[1756819967149,0.00067063,109660.0,109650.0,1.3772667]
[1756819967367,0.00067063,109660.0,109650.0,1.3272667]
[1756819967581,0.00067063,109660.0,109650.0,1.3772667]
[1756819968116,0.00067063,109660.0,109650.0,1.37915397]
[1756819968357,0.00067063,109660.0,109650.0,1.36947732]
[1756819968598,0.00067063,109660.0,109650.0,0.36949335]
[1756819968846,0.00067063,109660.0,109650.0,0.54837335]
[1756819969281,0.00067063,109660.0,109650.0,0.52551453]
[1756819969499,0.00067063,109660.0,109650.0,0.54645335]
[1756819969719,0.00067063,109660.0,109650.0,0.36805481]
[1756819969944,0.00067063,109660.0,109650.0,1.23404762]
[1756819970177,0.00067063,109660.0,109650.0,0.88942335]
[1756819970410,0.00067063,109660.0,109650.0,0.53506481]
[1756819970706,0.00067063,109660.0,109650.0,0.89157335]
[1756819970951,0.00067063,109660.0,109650.0,0.88653335]
[1756819971233,0.00067063,109660.0,109650.0,0.52309481]
[1756819971530,0.00067063,109660.0,109650.0,0.88245335]
[1756819972043,0.00067063,109660.0,109650.0,0.88742335]
[1756819972287,0.00067063,109660.0,109650.0,1.57007762]
[1756819972507,0.00067063,109660.0,109650.0,0.89245335]
[1756819972722,0.00067063,109660.0,109650.0,0.88537335]
[1756819972931,0.00067063,109660.0,109650.0,0.88834335]
[1756819973182,0.00067063,109660.0,109650.0,0.89134335]
[1756819973398,0.18305253,109660.0,109650.0,0.18909481]
[1756819973610,0.00067063,109660.0,109650.0,0.58600426]
[1756819974278,0.00067063,109660.0,109650.0,0.58897426]
[1756819974500,0.18305253,109660.0,109650.0,0.2053069]
[1756819974721,0.8636768,109660.0,109650.0,0.18032]
[1756819974943,0.8636768,109660.0,109650.0,0.18028]
[1756819974944,1.2036768,109660.0,109650.0,0.18028]
[1756819975386,1.2036768,109660.0,109650.0,0.01]
[1756819975667,1.35274279,109660.0,109650.0,0.18724]
[1756819975881,1.35274279,109660.0,109650.0,0.01]
[1756819976130,1.35274279,109660.0,109650.0,0.011]
[1756819976810,1.75080161,109660.0,109650.0,1e-08]
[1756819977087,0.52241517,109640.0,109630.0,0.0018]
[1756819977306,0.52241517,109640.0,109610.0,0.25058631]
[1756819977307,1.20307272,109620.0,109610.0,0.25058631]
[1756819978412,1.20307272,109620.0,109610.0,0.17704]
[1756819978647,1.21219514,109620.0,109610.0,0.017704]
[1756819978883,0.53204121,109620.0,109610.0,0.017704]
[1756819979113,0.52291879,109620.0,109610.0,0.017704]
[1756819979343,0.00047034,109620.0,109610.0,0.2001691]
[1756819979604,0.18291879,109620.0,109610.0,0.29505509]
[1756819979833,0.00047034,109620.0,109610.0,0.31802391]
[1756819980062,0.18391879,109620.0,109610.0,0.13555881]
[1756819980287,0.18247056,109610.0,109600.0,0.17664]
[1756819980771,0.18247056,109610.0,109590.0,0.07016]
[1756819980772,0.18248175,109600.0,109590.0,0.07016]
[1756819981001,0.53904121,109620.0,109600.0,0.18248]
[1756819981238,0.1824651,109610.0,109600.0,0.09488599]
[1756819981474,0.1824651,109610.0,109590.0,0.42917422]
[1756819981697,0.18248175,109600.0,109590.0,0.16207599]
[1756819981923,0.1854651,109610.0,109590.0,0.52129439]
[1756819982165,0.1824651,109610.0,109590.0,0.52629439]
[1756819982379,0.19204146,109620.0,109600.0,0.27736774]
[1756819982616,0.53204146,109620.0,109610.0,0.17664]
[1756819982852,0.53204146,109620.0,109600.0,0.09191599]
[1756819982853,0.1824651,109610.0,109600.0,0.09191599]
[1756819983078,1.21266573,109620.0,109600.0,0.45388774]
[1756819983584,0.18248175,109600.0,109590.0,0.07216]
[1756819983846,0.18248175,109600.0,109590.0,0.24672]
[1756819983847,0.52248175,109600.0,109590.0,0.24672]
[1756819984571,0.34210745,109620.0,109590.0,0.4588904]
[1756819984572,0.34547034,109620.0,109590.0,0.4588904]
[1756819984795,0.18791889,109620.0,109600.0,0.18545158]
[1756819985006,0.1824651,109610.0,109600.0,0.18545158]
[1756819985221,0.18391889,109620.0,109600.0,0.36556158]
[1756819985444,0.1824651,109610.0,109600.0,0.27296599]
[1756819985670,0.18291889,109620.0,109600.0,0.48180241]
[1756819985930,0.86308937,109610.0,109600.0,0.02635467]
[1756819986151,0.18248175,109600.0,109590.0,0.25265832]
[1756819986369,0.86354316,109620.0,109600.0,0.18248175]
[1756819986589,0.00047034,109620.0,109610.0,0.3604251]
[1756819986806,0.1824651,109610.0,109590.0,0.26921708]
[1756819987027,0.1824651,109610.0,109600.0,0.17788]
[1756819987268,0.1824651,109610.0,109600.0,0.18088]
[1756819987501,0.00047034,109620.0,109610.0,0.1824651]
[1756819987721,0.18291879,109620.0,109600.0,0.45824774]
[1756819987944,0.00047034,109620.0,109610.0,0.1874651]
[1756819988168,0.00047034,109620.0,109610.0,0.27938109]
[1756819989050,0.00047034,109620.0,109610.0,0.28138109]
[1756819989528,0.00047034,109620.0,109610.0,0.29800944]
[1756819989995,0.00047034,109620.0,109610.0,0.99957253]
[1756819990208,0.00047034,109620.0,109610.0,0.31893661]
[1756819990422,0.00047034,109620.0,109610.0,1.34056088]
[1756819990634,0.00047034,109620.0,109610.0,1.39589088]
[1756819990856,0.00047034,109620.0,109610.0,1.39590841]
[1756819991145,0.0002,109660.0,109650.0,0.18239854]